lending/lending_fUSD_20240120
["ID","MTS","AMOUNT","RATE_DAILY","PERIOD"]
[312272678,1705731055945,-500.0,0.00025205,2]
[312272679,1705731055959,-500.0,0.00025205,2]
[312272680,1705731055970,-500.0,0.00025205,2]
[312272681,1705731055981,-500.0,0.00025205,2]
[312272682,1705731055993,-500.0,0.00025205,2]
[312272683,1705731056005,-500.0,0.00025205,2]
[312272684,1705731056018,-500.0,0.00025205,2]
[312272685,1705731056029,-500.0,0.00025205,2]
[312272686,1705731056042,-500.0,0.00025205,2]
[312272687,1705731056053,-1125.53,0.00025205,2]
[312272688,1705731056074,-500.0,0.00025205,2]
[312272689,1705731056088,-500.0,0.00025205,2]
[312272690,1705731056102,-500.0,0.00025205,2]
[312272691,1705731056115,-500.0,0.00025205,2]
[312272692,1705731056128,-500.0,0.00025205,2]
[312272693,1705731056141,-500.0,0.00025205,2]
[312272694,1705731056154,-260.16183676,0.00025205,2]
[312272695,1705731056688,-264.02841842,0.00024657,2]
[312272696,1705731056708,-235.97158158,0.00024657,2]
[312272697,1705731056720,-300.0,0.00024786,2]
[312272698,1705731056731,-239.83816324,0.00025205,2]
[312272699,1705731056743,-500.0,0.00025205,2]
[312272700,1705731056755,-500.0,0.00025205,2]
[312272701,1705731056766,-500.0,0.00025205,2]
[312272702,1705731056777,-500.0,0.00025205,2]
[312272703,1705731056790,-500.0,0.00025205,2]
[312272704,1705731056802,-410.06391431,0.00025205,2]
[312272705,1705731056822,-89.93608569,0.00025205,2]
[312272706,1705731056834,-500.0,0.00025205,2]
[312272707,1705731056845,-500.0,0.00025205,2]
[312272708,1705731056859,-500.0,0.00025205,2]
[312272709,1705731056871,-500.0,0.00025205,2]
[312272710,1705731056883,-156.58770539,0.00025205,2]
[312272711,1705731056898,-500.0,0.00025205,2]
[312272712,1705731056909,-500.0,0.00025205,2]
[312272713,1705731056921,-500.0,0.00025205,2]
[312272714,1705731056932,-500.0,0.00025205,2]
[312272715,1705731056947,-309.04519363,0.00025205,2]
[312272716,1705731056959,-91.43668729,0.00025205,2]
[312272717,1705731056974,-408.56331271,0.00025205,2]
[312272718,1705731056986,-683.75,0.00025205,2]
[312272719,1705731056998,-500.0,0.00025205,2]
[312272720,1705731057010,-200.38906743,0.00025205,2]
[312272721,1705731057026,-299.61093257,0.00025205,2]
[312272722,1705731057039,-500.0,0.00025205,2]
[312272723,1705731057051,-500.0,0.00025205,2]
[312272724,1705731057063,-265.67919404,0.00025205,2]
[312272725,1705731057079,-234.32080596,0.00025205,2]
[312272726,1705731057091,-500.0,0.00025205,2]
[312272727,1705731057104,-3.21276596,0.00025205,2]
[312272728,1705731057125,-496.78723404,0.00025205,2]
[312272729,1705731057136,-245.43567519,0.00025205,2]
[312272730,1705731057145,-500.0,0.00025205,2]
[312272731,1705731057155,-79.75987418,0.00025205,2]
[312272732,1705731057167,-114.83759356,0.00025205,2]
[312272733,1705731057177,-500.0,0.00025205,2]
[312272734,1705731057186,-500.0,0.00025205,2]
[312272735,1705731057196,-500.0,0.00025205,2]
[312272736,1705731057205,-500.0,0.00025205,2]
[312272737,1705731057214,-500.0,0.00025205,2]
[312272738,1705731057225,-500.0,0.00025205,2]
[312272739,1705731057234,-500.0,0.00025205,2]
[312272740,1705731057245,-500.0,0.00025205,2]
[312272741,1705731057254,-228.78409047,0.00025205,2]
[312272742,1705731057263,-411.31290166,0.00025205,2]
[312272743,1705731057272,-500.0,0.00025205,2]
[312272744,1705731057281,-209.74953626,0.00025205,2]
[312272745,1705731057291,-500.0,0.00025205,2]
[312272746,1705731057301,-500.0,0.00025205,2]
[312272747,1705731057310,-500.0,0.00025205,2]
[312272748,1705731057319,-500.0,0.00025205,2]
[312272749,1705731057328,-500.0,0.00025205,2]
[312272750,1705731057338,-500.0,0.00025205,2]
[312272751,1705731057347,-500.0,0.00025205,2]
[312272752,1705731057357,-500.0,0.00025205,2]
[312272753,1705731057366,-500.0,0.00025205,2]
[312272754,1705731057375,-500.0,0.00025205,2]
[312272755,1705731057384,-500.0,0.00025205,2]
[312272756,1705731057394,-500.0,0.00025205,2]
[312272757,1705731057403,-500.0,0.00025205,2]
[312272758,1705731057412,-572.13762225,0.00025205,2]
[312272759,1705731057421,-500.0,0.00025205,2]
[312272760,1705731057430,-500.0,0.00025205,2]
[312272761,1705731057440,-500.0,0.00025205,2]
[312272762,1705731057449,-500.0,0.00025205,2]
[312272763,1705731057458,-500.0,0.00025205,2]
[312272764,1705731057467,-500.0,0.00025205,2]
[312272766,1705731057477,-42.08864209,0.00025205,2]
[312272767,1705731057490,-139.98135791,0.00025205,2]
[312272768,1705731057499,-182.91024209,0.00025205,2]
[312272769,1705731057511,-317.08975791,0.00025205,2]
[312272770,1705731057521,-500.0,0.00025205,2]
[312272771,1705731057530,-500.0,0.00025205,2]
[312272772,1705731057539,-500.0,0.00025205,2]
[312272773,1705731057548,-573.5682957,0.00025205,2]
[312272774,1705731057558,-500.0,0.00025205,2]
[312272775,1705731057567,-500.0,0.00025205,2]
[312272776,1705731057576,-500.0,0.00025205,2]
[312272777,1705731057586,-500.0,0.00025205,2]
[312272778,1705731057595,-500.0,0.00025205,2]
[312272779,1705731057605,-500.0,0.00025205,2]
[312272781,1705731057976,-500.0,0.00025205,2]
[312272782,1705731057994,-500.0,0.00025205,2]
[312272783,1705731058009,-500.0,0.00025205,2]
[312272784,1705731058018,-500.0,0.00025205,2]
[312272785,1705731058028,-500.0,0.00025205,2]
[312272786,1705731058037,-500.0,0.00025205,2]
[312272787,1705731058047,-500.0,0.00025205,2]
[312272788,1705731058057,-437.28271821,0.00025205,2]
[312272789,1705731058066,-150.0,0.00025205,2]
[312272790,1705731058076,-500.0,0.00025205,2]
[312272791,1705731058085,-500.0,0.00025205,2]
[312272792,1705731058095,-500.0,0.00025205,2]
[312272793,1705731058104,-500.0,0.00025205,2]
[312272794,1705731058113,-500.0,0.00025205,2]
[312272795,1705731058123,-500.0,0.00025205,2]
[312272796,1705731058132,-500.0,0.00025205,2]
[312272797,1705731058142,-500.0,0.00025205,2]
[312272798,1705731058151,-500.0,0.00025205,2]
[312272799,1705731058160,-500.0,0.00025205,2]
[312272800,1705731058169,-500.0,0.00025205,2]
[312272801,1705731058179,-500.0,0.00025205,2]
[312272802,1705731058188,-500.0,0.00025205,2]
[312272803,1705731058197,-500.0,0.00025205,2]
[312272804,1705731058207,-500.0,0.00025205,2]
[312272805,1705731058216,-500.0,0.00025205,2]
[312272806,1705731058225,-500.0,0.00025205,2]
[312272807,1705731058234,-500.0,0.00025205,2]
[312272808,1705731058243,-500.0,0.00025205,2]
[312272809,1705731058252,-500.0,0.00025205,2]
[312272810,1705731058261,-500.0,0.00025205,2]
[312272811,1705731058271,-500.0,0.00025205,2]
[312272812,1705731058281,-500.0,0.00025205,2]
[312272813,1705731058290,-500.0,0.00025205,2]
[312272814,1705731058299,-500.0,0.00025205,2]
[312272815,1705731058308,-500.0,0.00025205,2]
[312272816,1705731058318,-500.0,0.00025205,2]
[312272817,1705731058326,-500.0,0.00025205,2]
[312272818,1705731058336,-500.0,0.00025205,2]
[312272819,1705731058345,-500.0,0.00025205,2]
[312272820,1705731058354,-500.0,0.00025205,2]
[312272821,1705731058363,-500.0,0.00025205,2]
[312272822,1705731058372,-500.0,0.00025205,2]
[312272823,1705731058381,-500.0,0.00025205,2]
[312272824,1705731058391,-500.0,0.00025205,2]
[312272825,1705731058400,-500.0,0.00025205,2]
[312272826,1705731058409,-500.0,0.00025205,2]
[312272827,1705731058418,-500.0,0.00025205,2]
[312272828,1705731058427,-500.0,0.00025205,2]
[312272829,1705731058437,-500.0,0.00025205,2]
[312272830,1705731058446,-500.0,0.00025205,2]
[312272831,1705731058455,-500.0,0.00025205,2]
[312272832,1705731058465,-500.0,0.00025205,2]
[312272833,1705731058474,-500.0,0.00025205,2]
[312272834,1705731058483,-424.55818064,0.00025205,2]
[312272835,1705731058492,-500.0,0.00025205,2]
[312272836,1705731058502,-500.0,0.00025205,2]
[312272837,1705731058511,-516.72916904,0.00025205,2]
[312272838,1705731058520,-414.95965859,0.00025205,2]
[312272839,1705731058529,-500.0,0.00025205,2]
[312272840,1705731058538,-500.0,0.00025205,2]
[312272841,1705731058547,-500.0,0.00025205,2]
[312272842,1705731058556,-500.0,0.00025205,2]
[312272843,1705731058566,-500.0,0.00025205,2]
[312272844,1705731058575,-500.0,0.00025205,2]
[312272845,1705731058584,-470.68596729,0.00025205,2]
[312272846,1705731058593,-500.0,0.00025205,2]
[312272847,1705731058602,-500.0,0.00025205,2]
[312272848,1705731058611,-530.48883549,0.00025205,2]
[312272849,1705731058620,-500.0,0.00025205,2]
[312272850,1705731058629,-500.0,0.00025205,2]
[312272851,1705731058639,-500.0,0.00025205,2]
[312272852,1705731058648,-500.0,0.00025205,2]
[312272853,1705731058657,-500.0,0.00025205,2]
[312272854,1705731058666,-10.2542637,0.00025205,2]
[312272855,1705731058680,-1876.5357363,0.00025205,2]
[312272856,1705731058690,-500.0,0.00025205,2]
[312272857,1705731058699,-500.0,0.00025205,2]
[312272858,1705731058708,-158.93835344,0.00025205,2]
[312272859,1705731058720,-341.06164656,0.00025205,2]
[312272860,1705731058729,-486.57475782,0.00025205,2]
[312272861,1705731058759,-461.40524218,0.00025205,2]
[312272862,1705731058768,-500.0,0.00025205,2]
[312272863,1705731058777,-500.0,0.00025205,2]
[312272864,1705731058786,-500.0,0.00025205,2]
[312272865,1705731058795,-1533.99,0.00025205,2]
[312272866,1705731058805,-500.0,0.00025205,2]
[312272867,1705731058814,-500.0,0.00025205,2]
[312272868,1705731058823,-500.0,0.00025205,2]
[312272869,1705731058832,-500.0,0.00025205,2]
[312272870,1705731058841,-500.0,0.00025205,2]
[312272871,1705731058851,-935.06,0.00025205,2]
[312272872,1705731058863,-500.0,0.00025205,2]
[312272873,1705731058873,-500.0,0.00025205,2]
[312272874,1705731058882,-500.0,0.00025205,2]
[312272875,1705731058891,-500.0,0.00025205,2]
[312272876,1705731058902,-2155.78,0.00025205,2]
[312272877,1705731058911,-500.0,0.00025205,2]
[312272878,1705731058920,-500.0,0.00025205,2]
[312272879,1705731058930,-5774.07,0.00025205,2]
[312272880,1705731058942,-500.0,0.00025205,2]
[312272881,1705731058951,-492.74379451,0.00025205,2]
[312272882,1705731058961,-500.0,0.00025205,2]
[312272883,1705731058970,-1672.2,0.00025205,2]
[312272884,1705731058979,-500.0,0.00025205,2]
[312272885,1705731058989,-1059.79,0.00025205,2]
[312272886,1705731058999,-500.0,0.00025205,2]
[312272887,1705731059008,-525.96,0.00025205,2]
[312272888,1705731059017,-500.0,0.00025205,2]
[312272889,1705731059026,-500.0,0.00025205,2]
[312272890,1705731059036,-1059.41,0.00025205,2]
[312272891,1705731059045,-500.0,0.00025205,2]
[312272892,1705731059054,-756.05,0.00025205,2]
[312272893,1705731059064,-500.0,0.00025205,2]
[312272894,1705731059073,-856.55,0.00025205,2]
[312272895,1705731059082,-605.91615295,0.00025205,2]
[312272896,1705731059091,-500.0,0.00025205,2]
[312272897,1705731059100,-514.1,0.00025205,2]
[312272898,1705731059109,-500.0,0.00025205,2]
[312272899,1705731059118,-500.0,0.00025205,2]
[312272900,1705731059128,-500.0,0.00025205,2]
[312272901,1705731059137,-500.0,0.00025205,2]
[312272902,1705731059146,-591.65,0.00025205,2]
[312272903,1705731059156,-500.0,0.00025205,2]
[312272904,1705731059165,-500.0,0.00025205,2]
[312272905,1705731059174,-500.0,0.00025205,2]
[312272906,1705731059183,-655.72,0.00025205,2]
[312272907,1705731059193,-500.0,0.00025205,2]
[312272908,1705731059203,-500.0,0.00025205,2]
[312272909,1705731059213,-253.18718924,0.00025205,2]
[312272910,1705731059225,-500.0,0.00025205,2]
[312272911,1705731059235,-500.0,0.00025205,2]
[312272912,1705731059246,-500.0,0.00025205,2]
[312272913,1705731059257,-500.0,0.00025205,2]
[312272914,1705731059268,-500.0,0.00025205,2]
[312272915,1705731059278,-3014.01,0.00025205,2]
[312272916,1705731059287,-1122.03,0.00025205,2]
[312272917,1705731059297,-500.0,0.00025205,2]
[312272918,1705731059307,-500.0,0.00025205,2]
[312272919,1705731059316,-1713.71,0.00025205,2]
[312272920,1705731059325,-787.73,0.00025205,2]
[312272921,1705731059335,-500.0,0.00025205,2]
[312272922,1705731059344,-500.0,0.00025205,2]
[312272923,1705731059354,-500.0,0.00025205,2]
[312272924,1705731059364,-500.0,0.00025205,2]
[312272925,1705731059373,-500.0,0.00025205,2]
[312272926,1705731059386,-500.0,0.00025205,2]
[312272927,1705731059395,-500.0,0.00025205,2]
[312272928,1705731059405,-500.0,0.00025205,2]
[312272929,1705731059415,-500.0,0.00025205,2]
[312272930,1705731059426,-500.0,0.00025205,2]
[312272931,1705731059435,-500.0,0.00025205,2]
[312272932,1705731059445,-500.0,0.00025205,2]
[312272933,1705731059455,-500.0,0.00025205,2]
[312272934,1705731059466,-500.0,0.00025205,2]
[312272935,1705731059475,-500.0,0.00025205,2]
[312272936,1705731059484,-500.0,0.00025205,2]
[312272937,1705731059493,-1319.15,0.00025205,2]
[312272938,1705731059503,-500.0,0.00025205,2]
[312272939,1705731059512,-500.0,0.00025205,2]
[312272940,1705731059522,-500.0,0.00025205,2]
[312272941,1705731059531,-500.0,0.00025205,2]
[312272942,1705731059541,-500.0,0.00025205,2]
[312272943,1705731059550,-500.0,0.00025205,2]
[312272944,1705731059559,-500.0,0.00025205,2]
[312272945,1705731059567,-500.0,0.00025205,2]
[312272946,1705731059577,-500.0,0.00025205,2]
[312272947,1705731059587,-230.95401626,0.00025205,2]
[312272948,1705731059597,-500.0,0.00025205,2]
[312272949,1705731059606,-500.0,0.00025205,2]
[312272950,1705731059616,-500.0,0.00025205,2]
[312272951,1705731059625,-500.0,0.00025205,2]
[312272952,1705731059635,-814.39,0.00025205,2]
[312272953,1705731059645,-663.41,0.00025205,2]
[312272954,1705731059654,-500.0,0.00025205,2]
[312272955,1705731059664,-500.0,0.00025205,2]
[312272956,1705731059673,-650.65,0.00025205,2]
[312272957,1705731059683,-500.0,0.00025205,2]
[312272958,1705731059694,-500.0,0.00025205,2]
[312272959,1705731059703,-500.0,0.00025205,2]
[312272960,1705731059713,-500.0,0.00025205,2]
[312272961,1705731059722,-1271.62,0.00025205,2]
[312272962,1705731059732,-500.0,0.00025205,2]
[312272963,1705731059742,-500.0,0.00025205,2]
[312272964,1705731059752,-500.0,0.00025205,2]
[312272965,1705731059763,-500.0,0.00025205,2]
[312272966,1705731059773,-5684.24,0.00025205,2]
[312272967,1705731059783,-160.25472963,0.00025205,2]
[312272968,1705731059793,-500.0,0.00025205,2]
[312272969,1705731059802,-500.0,0.00025205,2]
[312272970,1705731059811,-555.13,0.00025205,2]
[312272971,1705731059820,-500.0,0.00025205,2]
[312272972,1705731059831,-500.0,0.00025205,2]
[312272973,1705731059840,-1476.13,0.00025205,2]
[312272974,1705731059851,-1069.77,0.00025205,2]
[312272975,1705731059863,-500.0,0.00025205,2]
[312272976,1705731059874,-416.66,0.00025205,2]
[312272977,1705731059885,-622.2,0.00025205,2]
[312272978,1705731059895,-500.0,0.00025205,2]
[312272979,1705731059906,-500.0,0.00025205,5]
[312272980,1705731059916,-500.0,0.00025205,2]
[312272981,1705731059926,-918.54,0.00025205,2]
[312272982,1705731059936,-500.0,0.00025205,2]
[312272983,1705731059946,-500.0,0.00025205,2]
[312272984,1705731059957,-799.36,0.00025205,2]
[312272985,1705731059967,-500.0,0.00025205,2]
[312272986,1705731059978,-500.0,0.00025205,2]
[312272987,1705731059987,-500.0,0.00025205,2]
[312272988,1705731059997,-564.9,0.00025205,2]
[312272989,1705731060007,-521.48,0.00025205,2]
[312272990,1705731060016,-796.42,0.00025205,2]
[312272991,1705731060025,-604.0,0.00025205,2]
[312272992,1705731060034,-503.54,0.00025205,2]
[312272993,1705731060045,-500.0,0.00025205,2]
[312272994,1705731060054,-500.0,0.00025205,2]
[312272995,1705731060063,-500.0,0.00025205,2]
[312272996,1705731060073,-500.0,0.00025205,2]
[312272997,1705731060083,-5003.47,0.00025205,2]
[312272998,1705731060092,-500.0,0.00025205,2]
[312272999,1705731060101,-194.85512639,0.00025205,2]
[312273000,1705731060116,-507.30487361,0.00025205,2]
[312273001,1705731060126,-200.73786072,0.00025205,2]
[312273002,1705731060135,-235.51577163,0.00025205,2]
[312273003,1705731060147,-264.48422837,0.00025205,2]
[312273004,1705731060156,-500.0,0.00025205,2]
[312273005,1705731060166,-596.68,0.00025205,2]
[312273006,1705731060175,-500.0,0.00025205,2]
[312273007,1705731060185,-500.0,0.00025205,2]
[312273008,1705731060194,-500.0,0.00025205,2]
[312273009,1705731060204,-500.0,0.00025205,2]
[312273010,1705731060214,-500.0,0.00025205,2]
[312273011,1705731060223,-421.98327163,0.00025205,2]
[312273012,1705731060235,-78.01672837,0.00025205,2]
[312273013,1705731060244,-688.95,0.00025205,2]
[312273014,1705731060253,-49.88661844,0.00025205,2]
[312273015,1705731060265,-450.11338156,0.00025205,2]
[312273016,1705731060275,-532.24,0.00025205,2]
[312273017,1705731060285,-500.0,0.00025205,2]
[312273018,1705731060297,-500.0,0.00025205,2]
[312273019,1705731060308,-500.0,0.00025205,2]
[312273020,1705731060319,-534.9,0.00025205,2]
[312273021,1705731060329,-500.0,0.00025205,2]
[312273022,1705731060339,-500.0,0.00025205,2]
[312273023,1705731060348,-500.0,0.00025205,2]
[312273024,1705731060357,-500.0,0.00025205,2]
[312273025,1705731060367,-815.11,0.00025205,2]
[312273026,1705731060376,-500.0,0.00025205,2]
[312273027,1705731060386,-500.0,0.00025205,2]
[312273028,1705731060396,-500.0,0.00025205,2]
[312273029,1705731060405,-500.0,0.00025205,2]
[312273030,1705731060415,-500.0,0.00025205,2]
[312273031,1705731060426,-500.0,0.00025205,2]
[312273032,1705731060437,-239.99230073,0.00025205,2]
[312273033,1705731060446,-500.0,0.00025205,2]
[312273034,1705731060455,-500.0,0.00025205,2]
[312273035,1705731060464,-185.53560781,0.00025205,2]
[312273036,1705731060474,-500.0,0.00025205,2]
[312273037,1705731060483,-500.0,0.00025205,2]
[312273038,1705731060494,-500.0,0.00025205,2]
[312273039,1705731060504,-295.02213343,0.00025205,2]
[312273040,1705731060518,-473.16786657,0.00025205,2]
[312273041,1705731060528,-500.0,0.00025205,2]
[312273042,1705731060538,-234.05549056,0.00025205,2]
[312273043,1705731060550,-330.0617145,0.00025205,2]
[312273044,1705731060559,-500.0,0.00025205,2]
[312273045,1705731060569,-546.36137928,0.00025205,2]
[312273046,1705731060596,50585.02684994,0.00020833,2]
[312273047,1705731133398,50585.02684994,0.00020833,2]
[312273048,1705731151279,22479.21529777,0.00020833,2]
[312273051,1705731185666,500.0,0.00020833,2]
[312273053,1705731198417,190.10040705,0.00020833,2]
[312273055,1705731230829,-277.72776106,0.00021207,2]
[312273056,1705731230849,-322.27223894,0.00021423,2]
[312273058,1705731273978,1097.74494293,0.00020833,2]
[312273059,1705731433894,-201.0,0.00021189,2]
[312273060,1705731433918,-342.54398161,0.00021422,2]
[312273061,1705731433939,-150.0,0.00021422,2]
[312273062,1705731434262,-536.04901528,0.00021423,2]
[312273063,1705731434283,-2770.40700311,0.00021423,2]
[312273064,1705731435647,-4000.0,0.00021423,2]
[312273065,1705731442961,-4000.0,0.00021423,2]
[312273066,1705731444124,-4000.0,0.00021423,2]
[312273067,1705731445790,-4000.0,0.00021423,2]
[312273070,1705731449694,-4000.0,0.00021423,2]
[312273071,1705731455133,-1000.0,0.00021423,2]
[312273073,1705731542751,-547.96,0.00021392,2]
[312273074,1705731542771,-1452.04,0.00021421,2]
[312273075,1705731549851,-150.0,0.00021421,2]
[312273076,1705731551369,-150.0,0.00021421,2]
[312273077,1705731552876,-150.0,0.00021421,2]
[312273078,1705731554360,-150.0,0.00021421,2]
[312273079,1705731555967,-150.0,0.00021421,2]
[312273080,1705731557618,-150.0,0.00021421,2]
[312273090,1705731931660,520.56,0.00020792,2]
[312273100,1705732219248,155.7807075,0.00025,30]
[312273129,1705732231655,-319.48278176,0.0002142,2]
[312273130,1705732231667,-149.52553778,0.0002142,2]
[312273131,1705732231677,-511.27978022,0.00021421,2]
[312273132,1705732231689,-774.97821978,0.00021421,2]
[312273133,1705732231698,-300.0,0.00021422,2]
[312273134,1705732231708,-150.0,0.00021422,2]
[312273135,1705732231717,-347.98577563,0.00021423,2]
[312273136,1705732231752,-16700.38083725,0.00021423,2]
[312273137,1705732231762,-151.75679451,0.000219,2]
[312273138,1705732231772,-278.73030459,0.00022,2]
[312273139,1705732231781,-792.23630291,0.00022,2]
[312273140,1705732231793,-358.09149618,0.00022,2]
[312273141,1705732231854,-332.06921319,0.00022,2]
[312273142,1705732231865,-727.66732747,0.00022,2]
[312273143,1705732231874,-2001.74290219,0.000222,2]
[312273144,1705732231884,-812.7754651,0.00022212,2]
[312273145,1705732231893,-151.75679447,0.00022291,2]
[312273146,1705732231902,-2292.91716164,0.000225,2]
[312273147,1705732231922,-1311.61734267,0.000225,2]
[312273200,1705732237562,-2387.02860771,0.00022482,2]
[312273208,1705732237671,-21492.97139229,0.00022482,2]
[312273210,1705732237681,-8635.78108704,0.000225,2]
[312273212,1705732237690,-271.81,0.00022501,10]
[312273214,1705732237702,-354.03,0.00022516,2]
[312273216,1705732237717,-250.0,0.00022518,2]
[312273218,1705732237726,-767.96,0.00022519,2]
[312273220,1705732237735,-388.69,0.00022519,2]
[312273222,1705732237744,-712.0,0.00022537,2]
[312273224,1705732237754,-2000.0,0.00022573,2]
[312273226,1705732237763,-1709.64,0.00022633,2]
[312273228,1705732237773,-250.0,0.00022662,2]
[312273229,1705732237782,-150.99,0.00022662,2]
[312273230,1705732237792,-151.75679447,0.00022682,2]
[312273231,1705732237801,-201.0,0.00022718,2]
[312273232,1705732237810,-163.1,0.00022823,2]
[312273233,1705732237820,-200.0,0.00022836,2]
[312273234,1705732237829,-1006.39,0.00022841,2]
[312273235,1705732237838,-157.89,0.00022868,2]
[312273236,1705732237848,-354.96,0.00023023,2]
[312273237,1705732237858,-288.0,0.00023046,2]
[312273238,1705732237867,-520.56,0.00023056,2]
[312273239,1705732237876,-151.75679447,0.00023073,2]
[312273240,1705732237885,-157.89,0.00023106,2]
[312273241,1705732237894,-150.0,0.00023106,2]
[312273242,1705732237903,-160.77,0.00023162,2]
[312273243,1705732237913,-5985.1671387,0.000232,2]
[312273244,1705732237922,-417.0,0.00023292,2]
[312273245,1705732237931,-157.89,0.00023344,2]
[312273246,1705732237940,-160.77,0.00023394,2]
[312273247,1705732237950,-151.75679447,0.00023464,2]
[312273248,1705732237958,-157.89,0.00023583,2]
[312273249,1705732237967,-160.77,0.00023626,2]
[312273250,1705732237977,-767.96,0.00023645,2]
[312273251,1705732237985,-250.0,0.000237,2]
[312273252,1705732237995,-2518.9866,0.00023757,2]
[312273253,1705732238004,-157.89,0.00023821,2]
[312273254,1705732238013,-151.75679447,0.00023855,2]
[312273255,1705732238022,-160.77,0.00023857,2]
[312273256,1705732238032,-160.83,0.00023949,2]
[312273257,1705732238041,-162.4,0.00024014,2]
[312273258,1705732238050,-157.89,0.00024059,2]
[312273259,1705732238060,-160.77,0.00024089,2]
[312273261,1705732238069,-835.2842,0.000241,2]
[312273263,1705732238078,-354.96,0.00024174,2]
[312273265,1705732238087,-250.0,0.000242,2]
[312273267,1705732238097,-151.75679447,0.00024246,2]
[312273269,1705732238107,-16627.35569809,0.000243,2]
[312273273,1705732238140,-679.21665167,0.000243,2]
[312273277,1705732238160,-997.20368656,0.000243,2]
[312273279,1705732238172,-54182.85247651,0.000243,2]
[312273283,1705732238197,-8178.82662234,0.000243,2]
[312273285,1705732238208,-868.71140911,0.000243,2]
[312273481,1705732240078,-767.68758824,0.000243,2]
[312273488,1705732240134,-707.94525551,0.000243,2]
[312273490,1705732240146,-2709.94074882,0.000243,2]
[312273492,1705732240158,-1196.35888034,0.000243,2]
[312273549,1705732240793,-417.26,0.000243,2]
[312273557,1705732240849,-948.83827011,0.000243,2]
[312273559,1705732240862,-883.79496145,0.000243,2]
[312273571,1705732240960,-3255.15555125,0.000243,2]
[312273573,1705732240969,-160.77,0.0002432,2]
[312273599,1705732241190,-30324.0,0.000244,2]
[312273601,1705732241202,-1165.264,0.00024457,2]
[312273603,1705732241212,-1006.39,0.00024484,2]
[312273605,1705732241221,-162.4,0.00024495,2]
[312273607,1705732241230,-160.83,0.00024513,2]
[312273609,1705732241239,-160.77,0.00024552,2]
[312273611,1705732241250,-25315.989,0.00024557,2]
[312273613,1705732241260,-5000.0,0.00024557,2]
[312273615,1705732241269,-171.81618578,0.00024557,2]
[312273617,1705732241279,-1501.79670002,0.00024557,2]
[312273619,1705732241288,-371.56,0.00024598,2]
[312273621,1705732241297,-205.55287422,0.00024625,3]
[312273623,1705732241306,-151.75679447,0.00024637,2]
[312273625,1705732241314,-502.99418805,0.00024655,2]
[312273626,1705732241323,-1136.22308606,0.00024655,2]
[312273629,1705732241334,-1113.05999994,0.00024656,2]
[312273630,1705732241344,-2013.34068841,0.00024656,2]
[312273632,1705732241353,-150.0,0.00024656,2]
[312273634,1705732241363,-500.0,0.00024657,2]
[312273636,1705732241372,-354.39112232,0.00024657,2]
[312273638,1705732241381,-500.0,0.00024657,2]
[312273640,1705732241391,-1000.0,0.00024657,2]
[312273642,1705732241400,-500.0,0.00024657,2]
[312273644,1705732241409,-500.0,0.00024657,2]